Cogmind - Beta 10.2 @@@ ROGUE MODE // 2021.02.13 @ 14:36:26 Player: Locus Result: Destroyed by as-45312 with Assembled Blade Performance ------------- Evolutions (1) 500 Regions Visited (3) 600 Robots Destroyed (21) 105 Value Destroyed (533) 533 Prototype IDs (1) 20 Alien Tech Used (0) 0 Bonus (0) 0 TOTAL SCORE: 1758 Bonus ------- None Cogmind --------- Core Integrity 0/400 Matter 300/300 Energy 100/100 System Corruption 0% Temperature Cool (0) Movement Core (300) Ox5 Location -9/Mines Parts ------- > --- POWER (1) -------- (None) > --- PROPULSION (2) --- (None) > --- UTILITY (4) ------ Large Storage Unit Improved Sensor Array Signal Interpreter > --- WEAPON (2) ------- (None) > --- INVENTORY (10) --- Ion Engine Aluminum Leg Sensor Array Medium Armor Plating Hardened Light Armor Plating Beam Rifle Beam Rifle Particle Gun Improved Medium Laser Light Assault Rifle Peak State ------------ > --- POWER ------------ Improved Ion Engine > --- PROPULSION ------- Aluminum Leg Improved Aluminum Leg > --- UTILITY ---------- Large Storage Unit Improved Sensor Array Signal Interpreter Hardened Light Armor Plating > --- WEAPON ----------- Improved Medium Laser Autogun > --- INVENTORY -------- Ion Engine Improved Aluminum Leg Improved Heat Sink Sensor Array Medium Armor Plating Medium Armor Plating Beam Rifle Beam Rifle Particle Gun Rocket Launcher [Rating: 17] Favorites ----------- Power Ion Engine Engine Ion Engine Propulsion Improved Aluminum Leg Treads Light Treads Leg Improved Aluminum Leg Utility Signal Interpreter Device Improved Sensor Array Storage Large Storage Unit Processor Signal Interpreter Protection Medium Armor Plating Weapon EM Pulse Gun Energy Gun EM Pulse Gun Ballistic Gun Light Assault Rifle Launcher Rocket Launcher Impact Weapon Mace Special Melee Weapon Datajack Build | -11 -10 -9 -9 ------- Run | Scr Mat Mat Min Slots Evolved 2 | . . 2 . Power . | . . . . Propulsion . | . . . . Utility 2 | . . 2 . Weapon . | . . . . Parts Attached 45 | 6 21 16 2 Power 5 | 1 2 2 . Engine 5 | 1 2 2 . Core . | . . . . Reactor . | . . . . Propulsion 8 | 2 2 4 . Treads 2 | 2 . . . Leg 6 | . 2 4 . Wheel . | . . . . Hover . | . . . . Flight . | . . . . Utility 12 | 1 5 6 . Device 4 | . 2 2 . Storage 3 | 1 1 1 . Processor 1 | . 1 . . Hackware . | . . . . Protection 4 | . 1 3 . Artifact . | . . . . Weapon 20 | 2 12 4 2 Energy Gun 7 | 1 5 1 . Energy Cannon . | . . . . Ballistic Gun 5 | 1 1 2 1 Ballistic Cannon . | . . . . Launcher 2 | . 1 . 1 Special Weapon . | . . . . Impact Weapon 1 | . . 1 . Slashing Weapon . | . . . . Piercing Weapon . | . . . . Special Melee Weapon 5 | . 5 . . Unidentified Prototypes 1 | . . 1 . Parts Lost 7 | . . 1 6 Power 1 | . . . 1 Propulsion 2 | . . . 2 Utility 1 | . . . 1 Weapon 3 | . . 1 2 Highest Loss Streak 6 | . . 1 6 Average Slot Usage (%) 94 | . 94 99 88 Engine 12 | . 14 10 9 Treads 11 | . 20 . . Leg 13 | . 7 22 18 Device 8 | . 6 11 11 Storage 12 | . 14 11 11 Processor 5 | . 1 11 11 Protection 5 | . 1 11 9 Energy Gun 12 | . 13 17 1 Ballistic Gun 6 | . 7 4 9 Launcher 2 | . 1 . 7 Special Melee Weapon 2 | . 5 . . Naked Turns . | . . . . Heaviest Build 36 | 12 19 35 36 Greatest Support 40 | 40 40 26 23 Greatest Overweight (x) 2 | . 1 1 2 Average Overweight (x) . | . . . 1 Largest Inventory Capacity 10 | 6 8 10 10 Average Capacity 7 | 4 6 9 10 Most Carried 10 | 3 8 10 10 Average Carried 7 | 1 6 9 9 Final Capacity 10 | 6 8 10 10 Final Carried 10 | 2 8 10 10 Class Distribution -------------------- 96% | Mutant 3% | Scavenger-Mutant Dominant Class ---------------- Mutant | -10/Materials Mutant | -9/Materials Mutant | -9/Mines Resources | -11 -10 -9 -9 ----------- Run | Scr Mat Mat Min Matter Collected 708 | 179 263 172 94 Remotely . | . . . . Salvage Created 901 | . 219 447 235 Parts 51 | . 11 32 8 Haulers Intercepted 1 | . 1 . . Recyclers Shooed . | . . . . Parts Field Recycled . | . . . . Retrieved Matter . | . . . . Parts Self-Destructed . | . . . . Prevented . | . . . . Kills | -11 -10 -9 -9 ------- Run | Scr Mat Mat Min Combat Hostiles Destroyed 14 | . 3 8 3 Guns 10 | . 1 8 1 AOE 4 | . 2 . 2 Classes Destroyed 8 | . 4 2 2 Worker 1 | . . . 1 Hauler 1 | . 1 . . Recycler 3 | . 1 . 2 Operator 1 | . 1 . . Watcher 1 | . . 1 . Swarmer 3 | . . . 3 Grunt 8 | . 3 5 . Sentry 3 | . . 3 . Best Kill Streak 5 | . 2 3 5 Combat Bots Only 3 | . 2 3 3 Max Kills in Single Turn 3 | . 1 1 3 Gunslinging . | . . . . Exploded 1 | . 1 . 1 Melee . | . . . . Uniques/NPCs Destroyed . | . . . . Combat | -11 -10 -9 -9 -------- Run | Scr Mat Mat Min Damage Taken 1661 | . 231 555 875 Core 471 | . 36 60 375 Absorbed by Shields . | . . . . Core Remaining (%) 92 | 100 85 . . Volleys Fired 57 | . 16 35 6 Largest 2 | . 2 2 2 Hottest 105 | . 105 80 79 Shots Fired 108 | . 27 70 11 Gun 104 | . 25 70 9 Cannon . | . . . . Launcher 4 | . 2 . 2 Special . | . . . . Kinetic 26 | . 12 9 5 Thermal 13 | . 2 7 4 Explosive 4 | . 2 . 2 Electromagnetic 65 | . 11 54 . Robot Hit Streak 14 | . 11 14 7 Robot Miss Streak 5 | . 5 4 1 Penetration Max . | . . . . Secondary Targets 2 | . 1 1 . Max Gunslinging Chain 1 | . 1 1 . Shots Hit Robots 81 | . 26 48 7 Core Hits 35 | . 13 16 6 Critical Hits . | . . . . Critical Kills . | . . . . Critical Parts Destroyed . | . . . . Melee Attacks 17 | . 17 . . Impact . | . . . . Slashing . | . . . . Piercing . | . . . . Sneak Attacks 9 | . 9 . . Combat Hostiles . | . . . . Follow-up Attacks . | . . . . Damage Inflicted 1167 | . 276 591 300 Guns 731 | . 132 524 75 Cannons . | . . . . Explosions 435 | . 144 67 224 Melee . | . . . . Ramming 1 | . . . 1 Kinetic 116 | . 41 33 42 Thermal 218 | . 67 118 33 Explosive 333 | . 109 . 224 Electromagnetic 499 | . 59 440 . Impact . | . . . . Slashing . | . . . . Piercing . | . . . . Highest Corruption 2 | . 2 . . Average Corruption 1 | . 1 . . Corruption Purged . | . . . . Effects 4 | . 4 . . Heat Flow Errors 1 | . 1 . . Energy Discharges 2 | . 2 . . Data Loss (minor) 1 | . 1 . . Overload Shots . | . . . . Overflow Damage 3 | . . 3 . Projectiles . | . . . . Explosions 3 | . . 3 . Melee . | . . . . Knockbacks . | . . . . Impact . | . . . . Kinetic . | . . . . Secondary . | . . . . Self-Inflicted Damage 96 | . . 65 31 Shots 3 | . . 2 1 Rammed . | . . . . Targets Rammed 2 | . 1 . 1 Kicked 1 | . . . 1 Crushed 1 | . 1 . . Highest Temperature 277 | . 239 277 74 Average Temperature 68 | . 49 77 30 Received Heat Transfer 249 | . 75 174 . Siege Activations . | . . . . Robots Corrupted . | . . . . Combat Hostiles . | . . . . Parts Fried 5 | . 1 4 . Impact Corruptions . | . . . . Robots Melted . | . . . . Combat Hostiles . | . . . . Parts Melted . | . . . . Heat Transferred 375 | . 90 211 74 Parts Sabotaged . | . . . . Parts Stolen . | . . . . Parts Stripped . | . . . . Power Chain Reactions 3 | . 1 2 . Missiles Intercepted . | . . . . Alert | -11 -10 -9 -9 ------- Run | Scr Mat Mat Min Peak Influence 308 | . 142 308 154 Initial 54 | . . 6 54 Average 89 | . 55 140 130 Maximum Alert Level 1 | . . 1 . Low Security (%) 92 | 100 100 72 100 Level 1 7 | . . 27 . Level 2 . | . . . . Level 3 . | . . . . Level 4 . | . . . . Level 5 . | . . . . High Security . | . . . . Max Security . | . . . . Squads Dispatched 2 | . 1 1 . Investigation . | . . . . Extermination . | . . . . Reinforcement 2 | . 1 1 . Assault . | . . . . Garrison . | . . . . Intercept . | . . . . Construction Impeded . | . . . . Haulers Reinforced . | . . . . Stealth | -11 -10 -9 -9 --------- Run | Scr Mat Mat Min Distress Signals 2 | . . 2 . Communications Jammed . | . . . . Distress Signals . | . . . . Times Spotted 40 | . 9 15 16 Peak Tracking Total 11 | . 2 3 11 Tactical Retreats . | . . . . Traps | -11 -10 -9 -9 ------- Run | Scr Mat Mat Min Traps Triggered 4 | . 3 1 . Indirectly . | . . . . Trap Hack Attempts 23 | . 23 . . Triggered . | . . . . Disarmed 1 | . 1 . . Reprogrammed 1 | . 1 . . Reused . | . . . . Traps Extracted . | . . . . Installed . | . . . . Triggered . | . . . . Machines | -11 -10 -9 -9 ---------- Run | Scr Mat Mat Min Machines Disabled 3 | . . 2 1 Max in Single Turn 1 | . . 1 1 Machines Sabotaged . | . . . . Garrisons Compromised . | . . . . Overloaded Fab Kills . | . . . . Fab Network Shutdowns . | . . . . Hacking | -11 -10 -9 -9 --------- Run | Scr Mat Mat Min Machines Accessed 7 | . 6 1 . Terminals 3 | . 3 . . Fabricators . | . . . . Repair Stations 1 | . 1 . . Recycling Units 2 | . 2 . . Scanalyzers 1 | . . 1 . Garrison Access . | . . . . Total Hacks 22 | . 16 6 . Successful 18 | . 12 6 . Failed 4 | . 4 . . Catastrophic . | . . . . Database Lockouts . | . . . . Manual . | . . . . Terminals 9 | . 9 . . Fabricators . | . . . . Repair Stations 2 | . 2 . . Recycling Units 5 | . 5 . . Scanalyzers 6 | . . 6 . Garrison Access . | . . . . Terminal Hacks 5 | . 5 . . Emergency Access Points 1 | . 1 . . Maintenance Status 1 | . 1 . . Investigation Status 1 | . 1 . . Assault Status 1 | . 1 . . Zone Layout 1 | . 1 . . Fabricator Hacks . | . . . . Repair Station Hacks 2 | . 2 . . Scan Component 1 | . 1 . . Repair 1 | . 1 . . Recycling Unit Hacks 5 | . 5 . . Report Inventory 2 | . 2 . . Retrieve Matter 1 | . 1 . . Retrieve Components 2 | . 2 . . Scanalyzer 6 | . . 6 . Insert Component 3 | . . 3 . Analyze 3 | . . 3 . Garrison Access Hacks . | . . . . Unauthorized Hacks . | . . . . Terminals . | . . . . Fabricators . | . . . . Repair Stations . | . . . . Recycling Units . | . . . . Scanalyzers . | . . . . Garrison Access . | . . . . Data Cores Recovered . | . . . . Used . | . . . . Hacking Detections 4 | . 4 . . Full Trace Events . | . . . . Feedback Events . | . . . . Feedback Blocked . | . . . . Robot Schematics Acquired . | . . . . Robots Built . | . . . . Matter . | . . . . Time . | . . . . Total Robot Build Rating . | . . . . Part Schematics Acquired 3 | . . 3 . Parts Built . | . . . . Matter . | . . . . Time . | . . . . Total Part Build Rating . | . . . . Parts Repaired 1 | . 1 . . Time 13 | . 13 . . Parts Recycled . | . . . . Recycled Matter . | . . . . Retrieved Matter 69 | . 69 . . Retrieved Components 14 | . 14 . . Parts Scanalyzed 3 | . . 3 . Part Schematics Acquired 3 | . . 3 . Parts Damaged 1 | . . 1 . Bothacking | -11 -10 -9 -9 ------------ Run | Scr Mat Mat Min Used RIF Installer . | . . . . Robots Hacked 7 | . 7 . . Non-combat 7 | . 7 . . Combat . | . . . . Robot Hacks Applied 9 | . 9 . . parse_system 5 | . 5 . . no_distress 3 | . 3 . . find_recycling 1 | . 1 . . Relay Couplers Released . | . . . . Robots Rewired . | . . . . Allies Hacked . | . . . . Hacks Repelled . | . . . . Allies | -11 -10 -9 -9 -------- Run | Scr Mat Mat Min Total Allies . | . . . . Largest Group . | . . . . Highest-Rated Group . | . . . . Highest-Rated Ally . | . . . . Total Orders . | . . . . Ally Attacks . | . . . . Total Damage . | . . . . Kills . | . . . . Allies Corrupted . | . . . . Allies Melted . | . . . . Intel | -11 -10 -9 -9 ------- Run | Scr Mat Mat Min Robot Analysis Total . | . . . . Derelict Logs Recovered . | . . . . Drone Launches . | . . . . Drone Recoveries . | . . . . Exploration | -11 -10 -9 -9 ------------- Run | Scr Mat Mat Min Turns Passed 1764 | 63 933 474 294 Spaces Moved 950 | 37 540 236 137 Core 8 | 8 . . . Treads 359 | 29 330 . . Legs 583 | . 210 236 137 Wheels . | . . . . Hover . | . . . . Flight . | . . . . Fastest Speed 50 | 50 120 120 150 Average Speed 143 | 136 144 138 150 Slowest Speed 180 | 160 160 150 180 Overloaded Moves . | . . . . Propulsion Burnouts . | . . . . Robots Hopped . | . . . . Cave-ins Triggered . | . . . . Exploration Rate (%) 35 | 4 78 30 29 Regions Visited 3 Branch Regions 1 Pre-discovered Areas . | . . . . Known Exits Taken 2 | . 1 1 . Unknown Exits Taken 1 | 1 . . . Scrap Searched . | . . . . Spaces Dug . | . . . . Terrain Destroyed 47 | . 15 6 26 Melee . | . . . . Projectile . | . . . . AOE 47 | . 15 6 26 Terrain Rammed . | . . . . Walls Destroyed . | . . . . Machines Disabled . | . . . . Actions | -11 -10 -9 -9 --------- Run | Scr Mat Mat Min Total 1236 | 50 653 319 214 Wait 72 | . . 6 66 Move 947 | 36 539 235 137 Hop . | . . . . Pick Up 40 | 8 19 12 1 Fast Attach 9 | . 5 4 . Attach 12 | 6 2 4 . Detach . | . . . . Swap 24 | . 14 8 2 Drop 33 | . 17 15 1 Fire 57 | . 16 35 6 Melee 17 | . 17 . . Ram . | . . . . Kick 1 | . . . 1 Crush 1 | . 1 . . Escape Stasis . | . . . . Rewire . | . . . . Trap 23 | . 23 . . Miscellaneous . | . . . . Route ------- -11/Scrapyard -10/Materials (discovered 4 exits: *Mat x3 / *Min) -9/Materials -9/Mines (discovered 1 exit: *Mat) History --------- Turn | Location | Event 28 | -11/Scrapyard | Discovered new exit (range 16) 64 | -11/Scrapyard | Entered Materials 206 | -10/Materials | Discovered new exit (range 16) 257 | -10/Materials | Repaired Ion Engine? 303 | -10/Materials | Build established: Mutant 502 | -10/Materials | Discovered new exit (range 15) 687 | -10/Materials | Discovered new exit (range 6) 711 | -10/Materials | Discovered new exit (range 15) 916 | -10/Materials | Identified exit to Mines 996 | -10/Materials | Identified exit to Materials 997 | -10/Materials | Entered another Materials area 997 | -9/Materials | Evolved 2 slots: Utility x2 1434 | -9/Materials | Discovered new exit (range 12) 1449 | -9/Materials | Identified exit to Mines 1471 | -9/Materials | Entered Mines 1558 | -9/Mines | Discovered new exit (range 4) 1561 | -9/Mines | Identified exit to Materials 1670 | -9/Mines | Assembled infested the area 1675 | -9/Mines | Assisted by a Guerilla fighting off Assembled 1722 | -9/Mines | Core integrity fell below 50% 1754 | -9/Mines | Core integrity fell below 20% 1756 | -9/Mines | Lost 6 parts (1p2n1u2w) 1765 | -9/Mines | Destroyed by as-45312 with Assembled Blade Last Messages --------------- D-53 Grenadier destroyed. U-05 Engineer lays Concrete. The unstable cave ceiling collapses. U-05 Engineer lays Concrete. The unstable cave ceiling collapses. U-05 Engineer lays Concrete. K-01 Serf collects debris. as-45312 sneak attacks. U-05 Engineer lays Concrete. The unstable cave ceiling collapses. U-05 Engineer destroyed. K-01 Serf collects debris. The unstable cave ceiling collapses. K-01 Serf collects debris. The unstable cave ceiling collapses. K-01 Serf collects debris. The unstable cave ceiling collapses. K-01 Serf collects debris. R-06 Scavenger collects Launcher Guidance Computer. K-01 Serf collects debris. Map ----- +----------------------------------------------------+ | ??????????????##= #??????????????????????????????? | | ???????????????!%|#??????????????????????????????? | | ???????????????#! #??????????????????????????????? | | ???????????????# ##?????????????????????????????? | | ???????????????# % #?????????????????????????????? | | ???????????????##* #######???????????????????#### | | ??????????????## ##?????????????????# | | ??????????????# #?????????????????# | | ??????????????# # ####?????????###### | | ??????????????# #?????????# * | | ??????????????# % #??#####??# #### | | ???????????????# # # # #??# ##?# #??# | | ???????????????# a #??# ### #### | | ???????????????# r #### ### # ##### | | ???????????????####### %### # # # #???? | | ????????????????????# # a ### ###???? | | ????????????????????## ####### % ###??? | | ????????????????????# # #???## #### # #??? | | ?????????????????????# #?### ##*# # #??? | | ????????????????????## #### ### # # #??? | | ????????????????????# ## ##?### ###### | | ????????????????????# k ## #???## | | ????????????????????# k # #????# | | ?????????????########## # ##????###### | | ?????????? u a ## ###?????????## | | ?????????? @ # #?###????????????# < | | ???????????########## #???????????????# | | ????????????????????# # #???????????????# | | ????????????????????## #??????????????## | | ?????????????????????## ## #???????????????## | | ??????????????????????##### ##????????????????## | | ???????????????????????????####??????????????????? | | ?????????????????????????????????????????????????? | | ?????????????????????????????????????????????????? | | ?????????????????????????????????????????????????? | | ?????????????????????????????????????????????????? | | ?????????????????????????????????????????????????? | | ?????????????????????????????????????????????????? | | | | | | | | | | | | | | | | | | | | | | | | | +----------------------------------------------------+ Best States ------------- Heat Dissipation 39 Energy Generation 12 Energy Capacity 265 Matter Stores 300 Matter Capacity 300 Sight Range 16 Robot Scan Range 13 Terrain Scan Density 10 Armor Coverage 225 Power Shielding 33 Evasion (%) 40 Recoil Reduction 2 Item Schematics ----------------- Hrd. Light Armor Plating | -9/Materials | Scanalyzed Rocket Launcher | -9/Materials | Scanalyzed Imp. Heat Sink | -9/Materials | Scanalyzed Robot Schematics ------------------ None Fabricated ------------ Nothing Alien Tech Used ----------------- None Achievements -------------- Hehehe Let's See Who's Tougher Challenges ------------ None Game ------ Seed MicroTerrainFlakker Manual? 0 Play Time 00:31:17 Cumulative 4.9 hours Start 2021.02.13 @ 04:17:56 End 2021.02.13 @ 14:36:26 Sessions 3 Manual Loads 0 Difficulty Rogue Special Mode None Game No. 5 Rogue 5 Adventurer 0 Explorer 0 Win Type - Total 0 Types 0/0/0/0/0/0/0/0/0 Lore% 6 Gallery% 11 Achievement% 12 Wizard Run 0 Options --------- ASCII 0 Keyboard 0 Movement Numpad Keybinds 0 Fullscreen 0 Font 16/SmallcapsGlow Map View 76x50 Tactical HUD 0 Map Filters NONE Filters NONE Steam 1 RUN: 75c3eb9b-44f7-4771-b1a5-4168fae7493a